bitfinex/quotes_BTCUSD_20241111
["timestamp","ask_amount","ask_price","bid_price","bid_amount"]
[1731332496549,0.03607451,81712.0,81709.0,0.0040787]
[1731332496550,0.03445051,81712.0,81709.0,0.0040787]
[1731332496762,0.122384,81710.0,81709.0,0.0040787]
[1731332497001,0.16934937,81711.0,81709.0,0.0040787]
[1731332497209,0.16934937,81711.0,81709.0,0.122384]
[1731332497417,0.001,81710.0,81705.0,0.244781]
[1731332497624,0.001,81709.0,81708.0,0.123385]
[1731332497856,0.001,81709.0,81708.0,0.122385]
[1731332498632,0.001688,81710.0,81709.0,0.122385]
[1731332499848,0.002688,81710.0,81709.0,0.122385]
[1731332501526,0.002688,81710.0,81709.0,0.123385]
[1731332502677,0.002688,81710.0,81709.0,0.001]
[1731332502922,0.25101421,81710.0,81709.0,0.001]
[1731332503160,0.4672733,81710.0,81709.0,0.001]
[1731332503391,0.16934937,81698.0,81697.0,0.000844]
[1731332503618,0.12594221,81698.0,81697.0,0.000844]
[1731332504085,0.12594221,81698.0,81697.0,0.00491433]
[1731332504309,0.12594221,81698.0,81697.0,0.0376513]
[1731332504543,0.12694221,81698.0,81697.0,0.04272163]
[1731332504769,0.12694221,81698.0,81697.0,0.00491433]
[1731332504992,0.12694221,81698.0,81697.0,0.000844]
[1731332505224,0.004,81698.0,81697.0,0.12732661]
[1731332505449,0.004,81698.0,81697.0,0.123247]
[1731332505650,0.004,81698.0,81697.0,0.12732661]
[1731332506557,0.008,81698.0,81697.0,0.12732661]
[1731332508750,0.008,81698.0,81697.0,0.00492361]
[1731332509216,0.13394221,81698.0,81697.0,0.00492361]
[1731332509434,0.008,81698.0,81697.0,0.00492361]
[1731332509714,0.008,81698.0,81697.0,0.123247]
[1731332509920,0.008,81698.0,81697.0,0.12732661]
[1731332510383,0.008,81698.0,81697.0,0.00492361]
[1731332510605,0.009688,81698.0,81697.0,0.00492361]
[1731332512251,0.13209,81698.0,81697.0,0.00492361]
[1731332512666,0.13209,81698.0,81697.0,0.000844]
[1731332512876,0.17169362,81698.0,81697.0,0.000844]
[1731332513095,0.29409562,81698.0,81697.0,0.000844]
[1731332513326,0.42899832,81698.0,81697.0,0.000844]
[1731332513538,0.47435846,81698.0,81697.0,0.000844]
[1731332514833,0.54648528,81698.0,81697.0,0.000844]
[1731332515043,0.47435846,81698.0,81697.0,0.000844]
[1731332515735,0.56931654,81698.0,81697.0,0.000844]
[1731332516021,0.61510022,81698.0,81697.0,0.000844]
[1731332516270,0.87606037,81692.0,81691.0,0.000844]
[1731332516503,1.27769741,81692.0,81691.0,0.000844]
[1731332516713,1.32559741,81692.0,81691.0,0.000844]
[1731332516918,1.44920778,81692.0,81691.0,0.000844]
[1731332517190,0.132419,81686.0,81685.0,0.000844]
[1731332517409,0.69447916,81686.0,81685.0,0.000844]
[1731332517612,0.82755053,81686.0,81685.0,0.000844]
[1731332518217,0.451743,81670.0,81669.0,0.00045301]
[1731332518423,0.63171209,81670.0,81669.0,0.00045301]
[1731332519064,0.67961209,81670.0,81669.0,0.00045301]
[1731332519278,0.66158879,81670.0,81669.0,0.00045301]
[1731332519599,0.41194579,81670.0,81669.0,0.00045301]
[1731332520076,0.37594221,81670.0,81669.0,0.00045301]
[1731332520283,0.12594221,81670.0,81669.0,0.00045301]
[1731332520750,0.03600358,81675.0,81672.0,0.12244]
[1731332520944,0.32203585,81679.0,81673.0,0.122439]
[1731332520945,0.12594221,81674.0,81673.0,0.122439]
[1731332521124,0.12594221,81674.0,81673.0,0.12761996]
[1731332521724,0.12594221,81674.0,81673.0,0.00518096]
[1731332521944,0.24837921,81674.0,81673.0,0.00518096]
[1731332522278,0.24837921,81674.0,81669.0,0.00045301]
[1731332522279,0.12694221,81674.0,81669.0,0.00045301]
[1731332522498,0.24938021,81674.0,81668.0,0.12305109]
[1731332522638,0.25138021,81674.0,81670.0,0.0044838]
[1731332522994,0.12894221,81674.0,81668.0,0.00060509]
[1731332523199,0.12244,81673.0,81671.0,0.00448348]
[1731332523349,0.12594221,81672.0,81668.0,0.00060509]
[1731332523945,0.12594221,81672.0,81668.0,0.12305109]
[1731332524353,0.12594221,81672.0,81668.0,0.00060509]
[1731332524569,0.24838321,81672.0,81668.0,0.00060509]
[1731332524947,0.12594221,81672.0,81668.0,0.00060509]
[1731332525164,0.12994221,81672.0,81669.0,0.00448348]
[1731332525498,0.12994221,81672.0,81670.0,0.122443]
[1731332525624,0.12994221,81672.0,81670.0,0.12692616]
[1731332525831,0.13294221,81672.0,81670.0,0.00448316]
[1731332526081,0.13294221,81672.0,81671.0,0.122442]
[1731332526082,0.003,81672.0,81671.0,0.122442]
[1731332526289,0.003,81672.0,81671.0,0.12692484]
[1731332526428,0.127423,81684.0,81678.0,0.12243]
[1731332526627,0.12594221,81683.0,81679.0,0.12691412]
[1731332526834,0.12594221,81683.0,81679.0,0.12691312]
[1731332527068,0.24836721,81683.0,81679.0,0.00448412]
[1731332527451,0.24836721,81683.0,81676.0,0.244869]
[1731332527669,0.24836721,81683.0,81678.0,0.12243]
[1731332528041,0.122428,81681.0,81679.0,0.0044838]
[1731332528256,0.12594221,81680.0,81679.0,0.0044838]
[1731332528453,0.12594221,81680.0,81679.0,0.12243]
[1731332528819,0.12594221,81680.0,81679.0,0.00448284]
[1731332529039,0.24837021,81680.0,81679.0,0.00448284]
[1731332529235,0.122437,81675.0,81669.0,0.122444]
[1731332529458,0.244863,81678.0,81664.0,0.244904]
[1731332529660,0.122435,81676.0,81670.0,0.12692612]
[1731332529875,0.122438,81674.0,81670.0,0.00448412]
[1731332530075,0.12594221,81675.0,81670.0,0.00448412]
[1731332530076,0.12594221,81673.0,81670.0,0.00448412]
[1731332530305,0.12594221,81673.0,81669.0,0.122444]
[1731332530427,0.12594221,81673.0,81671.0,0.00448316]
[1731332530867,0.17526673,81673.0,81668.0,0.12305109]
[1731332531045,0.12594221,81673.0,81669.0,0.122444]
[1731332531245,0.12594221,81673.0,81670.0,0.00448348]
[1731332531529,0.122442,81671.0,81670.0,0.00448348]
[1731332531782,0.122442,81671.0,81668.0,0.00060509]
[1731332531783,0.12594221,81671.0,81668.0,0.00060509]
[1731332532183,0.12594221,81671.0,81670.0,0.122443]
[1731332532599,0.12594221,81671.0,81670.0,0.12792584]
[1731332535080,0.12713206,81682.0,81675.0,0.122435]
[1731332535258,0.18305296,81676.0,81673.0,0.244878]
[1731332535461,0.12594221,81681.0,81670.0,0.00548284]
[1731332535666,0.12594221,81681.0,81675.0,0.244872]
[1731332535922,0.12594221,81681.0,81668.0,0.24549609]
[1731332535923,0.18305296,81686.0,81669.0,0.000845]
[1731332536121,0.30899517,81686.0,81685.0,0.122421]
[1731332536612,0.45560289,81698.0,81685.0,0.00521673]
[1731332536613,0.00469024,81692.0,81685.0,0.00521673]
[1731332536808,0.122417,81688.0,81685.0,0.00521673]
[1731332537028,0.12594221,81691.0,81678.0,0.0792]
[1731332537172,0.12594221,81691.0,81686.0,0.00447181]
[1731332537377,0.12594221,81691.0,81678.0,0.0792]
[1731332537574,0.008,81686.0,81671.0,0.08]
[1731332537753,0.12594221,81685.0,81679.0,0.0044737]
[1731332537961,0.12594221,81685.0,81671.0,0.08]
[1731332538364,0.12594221,81685.0,81672.0,0.00521327]
[1731332539131,0.18305296,81684.0,81672.0,0.00521327]
[1731332539387,0.12594221,81683.0,81672.0,0.00521327]
[1731332539618,0.12594221,81683.0,81672.0,0.002]
[1731332539831,0.002,81685.0,81673.0,0.00244862]
[1731332539953,0.18305296,81684.0,81674.0,0.02619899]
[1731332540143,0.18305296,81683.0,81676.0,0.21434937]
[1731332540339,0.18305296,81683.0,81676.0,0.045]
[1731332540552,0.18305296,81682.0,81677.0,0.00521048]
[1731332540817,0.014,81685.0,81677.0,0.00521048]
[1731332541101,0.18305296,81684.0,81677.0,0.00521048]
[1731332541267,0.12594221,81695.0,81677.0,0.00521048]
[1731332541268,0.15965502,81695.0,81677.0,0.00521048]
[1731332541500,0.18305296,81687.0,81676.0,0.045]
[1731332541699,0.12594221,81687.0,81676.0,0.045]
[1731332541972,0.12594221,81687.0,81677.0,0.00519569]
[1731332542326,0.001,81684.0,81677.0,0.00519569]
[1731332543204,0.001,81684.0,81677.0,0.01846011]
[1731332543672,0.13994221,81687.0,81677.0,0.01846011]
[1731332544286,0.12594221,81687.0,81677.0,0.01846011]
[1731332544483,0.13994221,81687.0,81677.0,0.01846011]
[1731332544900,0.13994221,81687.0,81677.0,0.00519569]
[1731332545104,0.18771026,81696.0,81678.0,0.00244847]
[1731332545301,0.028,81687.0,81677.0,0.00519569]
[1731332545516,0.028,81687.0,81678.0,0.02245451]
[1731332545739,0.028,81687.0,81678.0,0.02762723]
[1731332545924,0.014,81687.0,81678.0,0.02762723]
[1731332546764,0.014,81687.0,81682.0,0.005]
[1731332546961,0.014,81687.0,81681.0,0.16934937]
[1731332546962,0.014,81696.0,81695.0,0.0597]
[1731332547173,0.18305296,81704.0,81703.0,0.1297]
[1731332547397,0.001688,81710.0,81708.0,0.01]
[1731332547602,0.001688,81733.0,81715.0,0.01]
[1731332547820,0.001688,81733.0,81729.0,0.16934937]
[1731332548276,0.001688,81733.0,81729.0,0.17446871]
[1731332548493,0.001688,81733.0,81731.0,0.005]
[1731332548954,0.001688,81733.0,81731.0,0.08711934]
[1731332549159,0.001688,81733.0,81731.0,0.08511934]
[1731332550364,0.001688,81733.0,81731.0,0.25446871]
[1731332550903,0.001688,81733.0,81731.0,0.26646871]
[1731332551105,0.002688,81732.0,81731.0,0.28892322]
[1731332551530,0.002688,81732.0,81731.0,0.28992322]
[1731332551945,0.002688,81732.0,81731.0,0.30192322]
[1731332551946,0.003688,81732.0,81731.0,0.30192322]
[1731332552302,0.003688,81732.0,81731.0,0.30292322]
[1731332552476,0.003688,81732.0,81731.0,0.32092322]
[1731332552667,0.004688,81732.0,81731.0,0.32092322]
[1731332553063,0.004688,81732.0,81731.0,0.31592322]
[1731332553270,0.004688,81732.0,81731.0,0.04911934]
[1731332553475,0.13063021,81732.0,81731.0,0.04911934]
[1731332553896,0.12963021,81732.0,81731.0,0.03711934]
[1731332554331,0.12863021,81732.0,81731.0,0.03711934]
[1731332554522,0.12763021,81732.0,81731.0,0.02411934]
[1731332554773,0.12763021,81732.0,81731.0,0.01111934]
[1731332554944,0.12763021,81732.0,81731.0,0.015]
[1731332555160,0.001688,81732.0,81731.0,0.015]
[1731332555387,0.001688,81732.0,81731.0,0.03343494]
[1731332555581,0.001688,81732.0,81731.0,0.01135939]
[1731332555779,0.001688,81732.0,81731.0,0.01235939]
[1731332555978,0.001688,81732.0,81731.0,0.02135939]
[1731332557234,0.002688,81732.0,81731.0,0.02135939]
[1731332557365,0.002688,81732.0,81731.0,0.02035939]
[1731332557565,0.003688,81732.0,81731.0,0.02835939]
[1731332557767,0.003688,81732.0,81731.0,0.01335939]
[1731332557768,0.004688,81732.0,81731.0,0.01335939]
[1731332558318,0.004688,81732.0,81688.0,0.005]
[1731332558319,0.25,81727.0,81688.0,0.005]
[1731332558525,0.25,81727.0,81688.0,0.0812]
[1731332558526,0.18305296,81711.0,81688.0,0.0812]
[1731332558736,0.17434937,81720.0,81703.0,0.18305296]
[1731332558930,0.17434937,81720.0,81694.0,0.18305296]
[1731332559141,0.005,81720.0,81694.0,0.18305296]
[1731332559354,0.02237579,81719.0,81695.0,0.00244783]
[1731332559541,0.12594221,81718.0,81703.0,0.18305296]
[1731332559843,0.18305296,81717.0,81700.0,0.16934937]
[1731332560071,0.12594221,81716.0,81697.0,0.02209858]
[1731332560838,0.02237579,81716.0,81706.0,0.16934937]
[1731332561043,0.18305296,81715.0,81707.0,0.03524023]
[1731332561240,0.18305296,81715.0,81706.0,0.16934937]
[1731332561450,0.001688,81720.0,81706.0,0.16934937]
[1731332561874,0.028,81716.0,81706.0,0.16934937]
[1731332562081,0.028,81716.0,81706.0,0.18628431]
[1731332562445,0.028,81716.0,81706.0,0.16934937]
[1731332563387,0.001,81715.0,81706.0,0.16934937]
[1731332563594,0.001,81715.0,81706.0,0.17334937]
[1731332564052,0.001,81715.0,81706.0,0.16934937]
[1731332564517,0.001,81715.0,81706.0,0.003]
[1731332564984,0.001,81715.0,81697.0,0.005]
[1731332565229,0.002,81715.0,81706.0,0.003]
[1731332566325,0.002,81715.0,81707.0,0.18305296]
[1731332566533,0.002,81715.0,81699.0,0.17134937]
[1731332566534,0.001,81715.0,81699.0,0.17134937]
[1731332566767,0.001,81715.0,81700.0,0.0487792]
[1731332566768,0.002,81715.0,81700.0,0.0487792]
[1731332567004,0.002,81715.0,81700.0,0.05377629]
[1731332567213,0.001,81715.0,81700.0,0.05377629]
[1731332567441,0.18305296,81713.0,81700.0,0.05377629]
[1731332567640,0.18305296,81714.0,81707.0,0.003]
[1731332568089,0.18305296,81714.0,81694.0,0.18305296]
[1731332568090,0.02243254,81714.0,81694.0,0.18305296]
[1731332568313,0.30899517,81713.0,81694.0,0.18305296]
[1731332568524,0.30899517,81713.0,81700.0,0.003]
[1731332568728,0.0801,81712.0,81700.0,0.003]
[1731332568942,0.12594221,81711.0,81700.0,0.003]
[1731332569355,0.14837813,81711.0,81700.0,0.003]
[1731332569606,0.02243592,81710.0,81694.0,0.18305296]
[1731332569833,0.12594221,81709.0,81694.0,0.18305296]
[1731332570063,0.12594221,81709.0,81707.0,0.004]
[1731332570536,0.14837813,81709.0,81694.0,0.18305296]
[1731332570765,0.12594221,81709.0,81695.0,0.02329485]
[1731332571458,0.14937813,81709.0,81695.0,0.02329485]
[1731332571666,0.02343592,81709.0,81708.0,0.122387]
[1731332571886,0.001,81709.0,81708.0,0.12483458]
[1731332572093,0.002,81709.0,81708.0,0.12981652]
[1731332572421,0.002,81709.0,81708.0,0.12981632]
[1731332573062,0.003,81709.0,81708.0,0.12981632]
[1731332573683,0.001,81709.0,81708.0,0.12981632]
[1731332573903,0.001688,81720.0,81719.0,0.12237]
[1731332574281,0.001688,81720.0,81719.0,0.29171937]
[1731332574617,0.001688,81720.0,81719.0,0.37529401]
[1731332574783,0.001688,81720.0,81719.0,0.38029401]
[1731332575121,0.001688,81720.0,81719.0,0.38229401]
[1731332575418,0.001688,81720.0,81719.0,0.61323622]
[1731332575618,0.001688,81720.0,81719.0,0.80253252]
[1731332576345,0.18305296,81731.0,81723.0,0.007]
[1731332576548,0.18305296,81731.0,81723.0,0.222364]
[1731332576749,0.18305296,81731.0,81723.0,0.22762312]
[1731332577034,0.18305296,81731.0,81723.0,0.32965747]
[1731332577439,0.001688,81732.0,81723.0,0.33665747]
[1731332577855,0.03689207,81724.0,81723.0,0.33665747]
[1731332579032,0.001,81724.0,81723.0,0.33665747]
[1731332579232,0.002,81724.0,81723.0,0.34265747]
[1731332579955,0.001,81724.0,81723.0,0.33665747]
[1731332580161,0.002,81724.0,81723.0,0.33665747]
[1731332580370,0.003,81724.0,81723.0,0.46859968]
[1731332580588,0.001,81724.0,81723.0,0.46859968]
[1731332580839,0.001,81724.0,81723.0,0.66594905]
[1731332581036,0.001688,81732.0,81731.0,0.129352]
[1731332581235,0.001688,81732.0,81731.0,0.40114795]
[1731332581369,0.001688,81732.0,81731.0,0.40381981]
[1731332581581,0.001688,81732.0,81731.0,0.40181981]
[1731332582454,0.001688,81732.0,81731.0,0.12747044]
[1731332582898,0.001688,81732.0,81731.0,0.36645589]
[1731332583028,0.02418985,81732.0,81731.0,0.36400915]
[1731332583229,0.02518985,81732.0,81731.0,0.37000915]
[1731332583455,0.02618985,81732.0,81731.0,0.37000915]
[1731332583639,0.001688,81732.0,81731.0,0.36400915]
[1731332583874,0.02518986,81732.0,81731.0,0.36400915]
[1731332584212,0.02518986,81732.0,81731.0,0.37000915]
[1731332584420,0.02518986,81732.0,81731.0,0.30781981]
[1731332584620,0.000693,81759.0,81749.0,0.134325]
[1731332584836,0.18305296,81751.0,81749.0,0.29055926]
[1731332585035,0.000693,81759.0,81749.0,0.29321475]
[1731332585150,0.000693,81759.0,81749.0,0.46256412]
[1731332585346,0.000693,81759.0,81749.0,0.18321475]
[1731332585556,0.000693,81759.0,81749.0,0.12742645]
[1731332586200,0.03598103,81755.0,81749.0,0.12742645]
[1731332586397,0.03766903,81757.0,81749.0,0.12742645]
[1731332586599,0.002688,81750.0,81749.0,0.13342645]
[1731332586802,0.003688,81750.0,81749.0,0.13342645]
[1731332587001,0.002688,81750.0,81749.0,0.12742645]
[1731332587264,0.002688,81750.0,81749.0,0.22826794]
[1731332587433,0.004688,81750.0,81749.0,0.23426794]
[1731332587641,0.003688,81750.0,81749.0,0.41561731]
[1731332587860,0.002688,81750.0,81749.0,0.76191342]
[1731332588071,0.003688,81750.0,81749.0,0.76191342]
[1731332588605,0.002688,81750.0,81749.0,0.75591342]
[1731332588794,0.000693,81759.0,81758.0,0.122312]
[1731332588989,0.000693,81759.0,81758.0,0.38338973]
[1731332589230,0.000693,81759.0,81758.0,0.39101263]
[1731332589441,0.000693,81759.0,81758.0,0.12738067]
[1731332590235,0.000693,81759.0,81758.0,0.13220861]
[1731332590438,0.001693,81759.0,81758.0,0.21499213]
[1731332590751,0.002693,81759.0,81758.0,0.22499213]
[1731332590950,0.003693,81759.0,81758.0,0.22499213]
[1731332591253,0.002693,81759.0,81758.0,0.22499213]
[1731332591454,0.003693,81759.0,81758.0,0.22499213]
[1731332591854,0.002693,81759.0,81758.0,0.21499213]
[1731332592376,0.002693,81759.0,81758.0,0.22999213]
[1731332592377,0.003693,81759.0,81758.0,0.22999213]
[1731332592814,0.002693,81759.0,81758.0,0.21999213]
[1731332592938,0.003693,81759.0,81758.0,0.22999213]
[1731332593312,0.001693,81759.0,81758.0,0.22999213]
[1731332593553,0.001693,81759.0,81758.0,0.21999213]
[1731332593746,0.002693,81759.0,81758.0,0.22999213]
[1731332594145,0.001693,81759.0,81758.0,0.22999213]
[1731332594303,0.002693,81759.0,81758.0,0.22999213]
[1731332595037,0.003693,81759.0,81758.0,0.23399213]
[1731332595627,0.002693,81759.0,81758.0,0.22399213]
[1731332595820,0.003693,81759.0,81758.0,0.23399213]
[1731332596387,0.002693,81759.0,81758.0,0.22399213]
[1731332596800,0.001693,81759.0,81758.0,0.23399213]
[1731332597245,0.001693,81759.0,81758.0,0.22399213]
[1731332597409,0.002693,81759.0,81758.0,0.14138067]
[1731332597814,0.02415917,81759.0,81758.0,0.01906867]
[1731332598318,0.15110138,81759.0,81758.0,0.00451128]
[1731332598483,0.38744636,81759.0,81748.0,0.122326]
[1731332598701,0.30665536,81758.0,81749.0,0.00452405]
[1731332598906,0.05840115,81757.0,81749.0,0.00452405]
[1731332599127,0.080793,81759.0,81743.0,0.00472827]
[1731332599128,0.18434336,81756.0,81743.0,0.00472827]
[1731332599326,0.05840115,81755.0,81754.0,0.122318]
[1731332599527,0.14840838,81755.0,81754.0,0.00452002]
[1731332599764,0.14840838,81755.0,81749.0,0.002]
[1731332599931,0.14840838,81755.0,81749.0,0.246651]
[1731332599932,0.05840115,81754.0,81749.0,0.246651]
[1731332600116,0.02246617,81753.0,81752.0,0.12232]
[1731332600349,0.02246617,81753.0,81752.0,0.20695966]
[1731332601007,0.02246617,81753.0,81752.0,0.12683957]
[1731332601339,0.05840115,81753.0,81752.0,0.00451957]
[1731332601543,0.05840115,81753.0,81741.0,0.00486751]
[1731332601741,0.05840115,81752.0,81744.0,0.122332]
[1731332602010,0.18434336,81751.0,81745.0,0.00452226]
[1731332602215,0.122329,81747.0,81745.0,0.00452226]
[1731332602422,0.122329,81747.0,81737.0,0.18305296]
[1731332602423,0.05840115,81746.0,81737.0,0.18305296]
[1731332602644,0.0768,81744.0,81737.0,0.18305296]
[1731332602778,0.0466,81742.0,81738.0,0.00452652]
[1731332602976,0.18434336,81741.0,81737.0,0.18305296]
[1731332603222,0.05840115,81740.0,81737.0,0.18305296]
[1731332603423,0.18434336,81739.0,81737.0,0.18305296]
[1731332603670,0.02246617,81738.0,81737.0,0.001]
[1731332603878,0.18434336,81738.0,81737.0,0.001]
[1731332604308,0.18434336,81738.0,81737.0,0.00561634]
[1731332604487,0.18434336,81738.0,81737.0,0.001]
[1731332604758,0.18434336,81738.0,81737.0,0.00562532]
[1731332604973,0.18434336,81738.0,81737.0,0.00462532]
[1731332605402,0.18434336,81738.0,81731.0,0.122352]
[1731332605403,0.18534336,81738.0,81731.0,0.122352]
[1731332605607,0.18434336,81737.0,81729.0,0.244711]
[1731332605749,0.05840115,81736.0,81732.0,0.12235]
[1731332605954,0.05840115,81735.0,81729.0,0.06772032]
[1731332606157,0.12594221,81737.0,81729.0,0.06772032]
[1731332606158,0.02246617,81734.0,81729.0,0.06772032]
[1731332606371,0.02252215,81736.0,81730.0,0.122354]
[1731332606566,0.02252215,81735.0,81720.0,0.000843]
[1731332606737,0.02252215,81734.0,81733.0,0.122349]
[1731332608402,0.001,81736.0,81733.0,0.122349]
[1731332608606,0.001,81736.0,81730.0,0.008]
[1731332608765,0.02251867,81735.0,81734.0,0.122347]
[1731332609161,0.001,81734.0,81733.0,0.006]
[1731332609367,0.02351867,81734.0,81733.0,0.006]
[1731332609595,0.02351867,81734.0,81732.0,0.12235]
[1731332609793,0.001,81734.0,81730.0,0.244707]
[1731332610016,0.001,81735.0,81733.0,0.122349]
[1731332610204,0.02251432,81734.0,81729.0,0.122354]
[1731332610543,0.002,81735.0,81721.0,0.18305296]
[1731332610544,0.02251432,81733.0,81724.0,0.244725]
[1731332610674,0.0819,81726.0,81721.0,0.18305296]
[1731332610878,0.0819,81726.0,81722.0,0.18305296]
[1731332610879,0.122364,81723.0,81722.0,0.18305296]
[1731332611076,0.122364,81723.0,81720.0,0.000843]
[1731332611077,0.12594221,81723.0,81720.0,0.000843]
[1731332611298,0.122367,81721.0,81720.0,0.000843]
[1731332611497,0.18446062,81721.0,81720.0,0.000843]
[1731332611657,0.14844929,81721.0,81720.0,0.000843]
[1731332611861,0.14844929,81721.0,81720.0,0.123212]
[1731332612084,0.14844929,81721.0,81720.0,0.12740339]
[1731332612287,0.14844929,81721.0,81720.0,0.00503439]
[1731332612988,0.14944929,81721.0,81720.0,0.00503439]
[1731332614071,0.14944929,81721.0,81720.0,0.03001333]
[1731332614275,0.14944929,81721.0,81720.0,0.000843]
[1731332614549,0.14944929,81721.0,81720.0,0.00419139]
[1731332614679,0.14944929,81721.0,81713.0,0.30543096]
[1731332614880,0.12694221,81721.0,81717.0,0.122372]
[1731332615109,0.14944929,81721.0,81718.0,0.00419228]
[1731332615312,0.14944929,81721.0,81713.0,0.18305296]
[1731332615313,0.12694221,81721.0,81714.0,0.122377]
[1731332615536,0.12594221,81721.0,81717.0,0.122373]
[1731332615792,0.12594221,81721.0,81718.0,0.00419228]
[1731332615972,0.12694221,81721.0,81718.0,0.00419228]
[1731332616178,0.12694221,81721.0,81717.0,0.122373]
[1731332616333,0.12694221,81721.0,81718.0,0.00419228]
[1731332616334,0.12794221,81721.0,81718.0,0.00419228]
[1731332616536,0.12694221,81721.0,81717.0,0.122373]
[1731332616742,0.12694221,81721.0,81718.0,0.00419228]
[1731332617075,0.12694221,81721.0,81717.0,0.122373]
[1731332617403,0.12594221,81721.0,81718.0,0.00423074]
[1731332617744,0.12594221,81721.0,81717.0,0.124373]
[1731332618118,0.12594221,81721.0,81718.0,0.0042316]
[1731332618554,0.12594221,81720.0,81708.0,0.000843]
[1731332618728,0.12594221,81720.0,81718.0,0.001]
[1731332618936,0.24831121,81720.0,81718.0,0.001]
[1731332619145,0.24831121,81720.0,81713.0,0.122379]
[1731332619799,0.12594221,81720.0,81713.0,0.122379]
[1731332620136,0.12594221,81720.0,81718.0,0.000843]
[1731332620319,0.12694221,81720.0,81718.0,0.000843]
[1731332620528,0.12594221,81720.0,81718.0,0.000843]
[1731332620975,0.12694221,81720.0,81718.0,0.000843]
[1731332622069,0.12594221,81720.0,81718.0,0.123214]
[1731332622317,0.12694221,81720.0,81718.0,0.123214]
[1731332622527,0.12694221,81720.0,81718.0,0.000843]
[1731332623231,0.12594221,81720.0,81718.0,0.000843]
[1731332623472,0.12994221,81720.0,81718.0,0.000843]
[1731332624115,0.12237,81719.0,81718.0,0.000843]
[1731332624340,0.27075824,81719.0,81718.0,0.000843]
[1731332624563,0.27075824,81719.0,81718.0,0.001843]
[1731332624769,0.19648824,81719.0,81718.0,0.001843]
[1731332624974,0.31885824,81719.0,81718.0,0.000843]
[1731332625401,0.32485824,81719.0,81718.0,0.00570154]
[1731332625521,0.32885824,81719.0,81718.0,0.001843]
[1731332625723,0.32885824,81719.0,81718.0,0.00570154]
[1731332626563,0.32885824,81719.0,81718.0,0.001843]
[1731332627284,0.20648824,81719.0,81718.0,0.001843]
[1731332627873,0.20648824,81719.0,81718.0,0.00570154]
[1731332628031,0.20648824,81719.0,81718.0,0.001843]
[1731332628228,0.20648824,81719.0,81718.0,0.00570845]
[1731332628448,0.20648824,81719.0,81718.0,0.001843]
[1731332628651,0.03244603,81719.0,81718.0,0.12808045]
[1731332628875,0.03244603,81719.0,81718.0,0.124215]
[1731332629079,0.01,81719.0,81718.0,0.12808045]
[1731332629384,0.03244603,81719.0,81718.0,0.12808045]
[1731332630001,0.01,81719.0,81718.0,0.12808045]
[1731332630211,0.03253144,81719.0,81718.0,0.12808045]
[1731332630401,0.01,81719.0,81718.0,0.12808045]
[1731332631832,0.02254348,81727.0,81726.0,0.12236]
[1731332632005,0.16188948,81741.0,81740.0,0.122339]
[1731332632205,0.14848764,81741.0,81740.0,0.122339]
[1731332632449,0.02254543,81741.0,81740.0,0.122339]
[1731332632603,0.02254543,81741.0,81740.0,0.12617483]
[1731332633410,0.02354543,81741.0,81740.0,0.12617483]
[1731332633607,0.02354543,81741.0,81740.0,0.22876693]
[1731332633917,0.02354543,81741.0,81740.0,0.35856693]
[1731332633918,0.001,81741.0,81740.0,0.35856693]
[1731332634528,0.001,81741.0,81740.0,0.5279679]
[1731332634802,0.004,81741.0,81740.0,0.5279679]
[1731332634977,0.004,81741.0,81740.0,0.35856693]
[1731332635181,0.004,81741.0,81740.0,0.25597483]
[1731332635182,0.001,81741.0,81740.0,0.25597483]
[1731332635591,0.001,81741.0,81740.0,0.26875681]
[1731332636220,0.002,81741.0,81740.0,0.13895681]
[1731332636599,0.001,81741.0,81740.0,0.13895681]
[1731332637027,0.02252909,81752.0,81740.0,0.00861781]
[1731332637227,0.000693,81759.0,81740.0,0.00861781]
[1731332637228,0.02252447,81751.0,81741.0,0.122337]
[1731332637553,0.12594221,81758.0,81740.0,0.00861781]
[1731332637554,0.02252447,81757.0,81755.0,0.122316]
[1731332637708,0.14846668,81756.0,81755.0,0.122316]
[1731332637909,0.14246103,81756.0,81755.0,0.122316]
[1731332638540,0.11993656,81756.0,81755.0,0.183476]
[1731332638744,0.11993656,81756.0,81755.0,0.122316]
[1731332638894,0.12593656,81756.0,81755.0,0.123316]
[1731332639107,0.12993656,81756.0,81755.0,0.123316]
[1731332640247,0.12993656,81756.0,81755.0,0.001]
[1731332640457,0.12993656,81756.0,81755.0,0.123316]
[1731332640632,0.01,81756.0,81755.0,0.123316]
[1731332640835,0.01,81756.0,81755.0,0.2028812]
[1731332641364,0.01,81756.0,81755.0,0.123316]
[1731332642583,0.13594221,81756.0,81755.0,0.001]
[1731332643656,0.13594221,81756.0,81755.0,0.00473355]
[1731332643816,0.13594221,81756.0,81755.0,0.123316]
[1731332644020,0.13594221,81756.0,81755.0,0.12704955]
[1731332644239,0.13594221,81756.0,81755.0,0.188683]
[1731332644434,0.13594221,81756.0,81755.0,0.12704955]
[1731332644435,0.011686,81756.0,81755.0,0.12704955]
[1731332649057,0.011686,81756.0,81755.0,0.13204955]
[1731332649285,0.011686,81756.0,81755.0,0.12704955]
[1731332649945,0.005686,81756.0,81755.0,0.12604955]
[1731332650156,0.006686,81756.0,81755.0,0.13304955]
[1731332650376,0.002686,81756.0,81755.0,0.13804955]
[1731332650580,0.002686,81756.0,81755.0,0.22609168]
[1731332650802,0.003686,81756.0,81755.0,0.22609168]
[1731332651011,0.003686,81756.0,81755.0,0.40049265]
[1731332653251,0.003686,81756.0,81755.0,0.70283583]
[1731332653461,0.003686,81756.0,81755.0,0.53343486]
[1731332655993,0.003686,81756.0,81755.0,0.53143486]
[1731332656218,0.003686,81756.0,81755.0,0.43839273]
[1731332656917,0.003686,81756.0,81755.0,0.26399176]
[1731332657117,0.003686,81756.0,81755.0,0.43339273]
[1731332657252,0.003686,81756.0,81755.0,0.30745052]
[1731332657502,0.003686,81756.0,81755.0,0.13804955]
[1731332657699,0.003686,81756.0,81755.0,0.13389255]
[1731332658124,0.003686,81756.0,81755.0,0.13889255]
[1731332661524,0.003686,81756.0,81755.0,0.13389255]
[1731332661953,0.003686,81756.0,81755.0,0.01157655]
[1731332662170,0.02624602,81756.0,81755.0,0.01157655]
[1731332662365,0.02625344,81756.0,81755.0,0.01157655]